bitfinex/quotes_ETHUSD_20250925
["timestamp","ask_amount","ask_price","bid_price","bid_amount"]
[1758806244252,3.1248,4002.4,4001.9,2.49881306]
[1758806244452,0.1248,4002.4,4001.8,0.1248]
[1758806244753,7.687,4002.3,4001.2,0.792]
[1758806245057,5.220492,4002.2,4000.3,0.4699]
[1758806245278,0.1248,4001.9,4001.3,2.49918776]
[1758806245480,3.0,4002.2,4000.1,2.49992047]
[1758806245718,0.1248,4001.6,4001.2,2.49924722]
[1758806245917,3.0,4001.4,3999.6,0.4699]
[1758806246214,3.0,4001.2,3999.7,0.02500187]
[1758806246385,0.1248,4001.4,4000.8,2.49944914]
[1758806246590,1.16603482,4002.5,4001.0,0.792]
[1758806246794,1.16603482,4002.5,3999.6,3.1743]
[1758806246795,0.1248,4001.9,4001.1,0.1248]
[1758806247122,3.0,4001.7,4000.0,2.49994955]
[1758806247326,3.0,4001.5,4000.0,2.49995075]
[1758806247479,2.49936634,4001.1,3999.7,2.50013874]
[1758806247678,3.0,4000.9,3998.8,0.4699]
[1758806247878,3.0,4000.7,3998.2,0.4699]
[1758806248100,2.906398,4000.6,3998.6,2.50085209]
[1758806248279,0.2489,4001.0,3998.7,0.4699]
[1758806248280,3.0,4000.4,3998.7,0.4699]
[1758806248474,3.0,4000.2,3998.7,0.4699]
[1758806248692,3.0,4000.2,3998.8,2.50075022]
[1758806248915,3.0,4000.2,3998.7,0.4699]
[1758806249124,3.0,4000.2,3998.8,0.792]
[1758806249288,11.634,4000.1,3998.8,0.792]
[1758806249489,11.634,4000.1,3999.8,2.50006759]
[1758806249710,2.085,4000.0,3999.9,2.5000625]
[1758806250183,2.085,4000.2,3999.9,0.792]
[1758806250373,2.085,4000.3,3999.9,0.792]
[1758806250709,8.617,4001.3,4001.2,2.49925022]
[1758806250878,8.617,4001.3,4000.1,0.792]
[1758806251200,8.617,4001.3,4001.2,3.29125022]
[1758806251520,8.617,4001.3,4000.1,0.4699]
[1758806251521,8.617,4001.3,4000.6,0.792]
[1758806251710,8.617,4001.3,4000.9,2.49938381]
[1758806251711,9.0816,4001.3,4000.9,2.49938381]
[1758806251912,8.6,4001.2,3999.8,0.792]
[1758806252117,8.6,4001.2,3999.5,0.792]
[1758806252315,3.0,4001.1,4000.7,2.49955541]
[1758806252479,3.0,4000.6,3998.6,0.4699]
[1758806252680,0.7135,4001.0,3998.7,2.50081276]
[1758806252894,3.0,4000.8,3998.8,3.0]
[1758806253085,3.0,4000.6,3998.8,3.0]
[1758806253285,6.498,4000.5,3998.8,3.0]
[1758806253492,17.842219,4000.4,3999.2,2.50045299]
[1758806253790,3.0,4000.2,3998.3,0.4699]
[1758806253991,3.0,4000.0,3999.2,2.5004894]
[1758806254189,3.0,3999.8,3995.7,2.50265795]
[1758806254417,3.0,3999.6,3997.4,2.50162605]
[1758806254613,3.0,3999.4,3997.3,0.75190514]
[1758806254815,3.0,3999.2,3996.9,2.501939]
[1758806255046,3.0,3999.0,3996.8,0.4699]
[1758806255332,3.0,3998.8,3996.0,0.472899]
[1758806255538,3.0,3998.6,3996.0,0.002999]
[1758806255829,3.0,3998.4,3996.1,2.50243987]
[1758806256037,3.0,3998.2,3997.7,2.50140834]
[1758806256218,3.0,3998.2,3996.2,0.49492377]
[1758806256219,3.0,3998.0,3997.4,2.50160722]
[1758806256569,0.7135,3998.1,3997.5,2.50154755]
[1758806256701,0.7127,3998.1,3997.5,2.50154755]
[1758806256909,0.1248,3997.5,3997.2,2.50169556]
[1758806257107,8.533,3997.4,3996.9,2.50190219]
[1758806257296,8.533,3997.4,3996.2,0.4699]
[1758806257297,8.53,3997.3,3996.8,0.1248]
[1758806257493,8.53,3997.3,3997.2,2.50175122]
[1758806257860,15.540659,3997.3,3996.8,2.62677693]
[1758806258155,1.0,4007.8,4003.3,2.4979392]
[1758806258323,1e-08,4003.9,4003.8,3.28962725]
[1758806258513,6.514,4009.5,4004.8,3.28900359]
[1758806258514,0.206,4006.8,4004.8,3.28900359]
[1758806258712,2.084,4005.2,4004.8,6.28900359]
[1758806259042,5.19,4004.9,4004.8,0.792]
[1758806259218,5.19,4004.9,4003.8,0.10005203]
[1758806259219,28.848547,4004.9,4003.8,0.1250283]
[1758806259544,6.682,4004.8,4002.4,3.0]
[1758806259721,0.7335,4004.9,4002.6,3.0]
[1758806259912,0.7335,4004.9,4004.7,2.49706594]
[1758806260250,0.02,4004.9,4004.7,2.49706594]
[1758806260462,0.02,4004.9,4004.8,2.49700359]
[1758806260835,0.4846,4004.9,4004.8,2.49700359]
[1758806261039,0.02,4004.9,4004.8,2.49700359]
[1758806261238,6.709,4004.9,4004.8,2.49700359]
[1758806261657,0.02,4004.9,4004.8,2.49700359]
[1758806262241,6.535,4004.9,4004.8,2.49700359]
[1758806262442,8.727284,4004.9,4002.9,0.2026]
[1758806262742,4.43642,4004.8,4004.6,2.49711004]
[1758806262964,7.3489,4004.9,4004.8,2.49700359]
[1758806262965,0.02,4004.9,4004.8,2.49700359]
[1758806263261,6.679,4004.9,4004.8,2.49700359]
[1758806263461,6.679,4004.9,4004.5,2.49713229]
[1758806263462,11.283842,4004.9,4004.5,2.49713229]
[1758806263670,20.69371,4004.8,4003.0,2.49807847]
[1758806263830,3.0,4004.6,4001.5,2.49906285]
[1758806264031,3.0,4004.4,4002.0,2.49875062]
[1758806264268,0.02,4004.9,4003.6,2.4977289]
[1758806264269,3.0,4004.2,4003.6,2.4977289]
[1758806264431,12.522643,4004.1,4002.3,2.49856332]
[1758806264634,5.087201,4004.0,4002.4,2.72778995]
[1758806264865,2.779948,4004.0,4003.9,2.49756487]
[1758806265072,8.722,4004.0,4002.8,0.792]
[1758806265246,2.083,4004.0,4003.9,2.49756487]
[1758806265764,0.02,4004.9,4004.8,2.49700359]
[1758806266065,8.731,4004.9,4001.6,2.49898739]
[1758806266241,3.0,4004.7,4001.7,0.22912084]
[1758806266439,3.0,4004.7,4001.8,0.22912084]
[1758806266440,3.0,4004.5,4001.8,0.22912084]
[1758806266661,3.0,4004.3,4001.9,0.22912084]
[1758806266850,3.0,4004.1,4003.5,2.49781286]
[1758806267056,3.0,4003.9,4002.4,2.49850089]
[1758806267255,2.083,4004.0,4003.9,2.49756487]
[1758806267460,8.701,4004.0,4003.9,2.49756487]
[1758806267767,2.083,4004.0,4003.9,2.49756487]
[1758806268072,8.692,4004.0,4003.9,2.49756487]
[1758806268244,8.8118,4004.0,4003.9,2.49756487]
[1758806268444,9.3479,4004.0,4003.9,2.49756487]
[1758806268776,2.874924,4003.9,4003.7,2.49767597]
[1758806268971,2.083,4004.0,4003.8,2.49762725]
[1758806269137,2.083,4004.0,4003.9,2.49756487]
[1758806269473,1e-08,4006.9,4002.4,3.0]
[1758806269672,0.4491,4010.9,4005.0,1.22380356]
[1758806269872,2.439874,4010.8,4006.8,9.41089156]
[1758806270169,16.3911,4010.7,4009.5,0.792]
[1758806270368,16.3911,4010.7,4010.5,2.49345468]
[1758806270369,2.554985,4010.6,4010.5,2.49345468]
[1758806270568,0.6609,4010.6,4009.2,2.49421523]
[1758806270773,9.111,4010.5,4010.4,2.49351685]
[1758806270943,11.409438,4010.5,4010.4,2.49351685]
[1758806271272,11.409438,4010.5,4009.9,2.4938112]
[1758806271273,0.02,4010.9,4010.3,0.02493579]
[1758806271478,0.02,4010.9,4010.7,2.49333034]
[1758806271652,0.02,4010.9,4010.8,2.49326817]
[1758806271847,2.102,4010.9,4010.8,2.51820085]
[1758806272047,7.028,4010.9,4010.8,2.49326817]
[1758806272387,9.104,4010.9,4010.8,2.49326817]
[1758806273187,8.132383,4010.8,4006.8,2.082]
[1758806273333,0.6809,4010.9,4010.7,2.49328277]
[1758806273538,0.02,4010.9,4010.8,2.51820085]
[1758806273772,0.44796377,4011.1,4011.0,2.49314385]
[1758806273980,9.52296377,4011.1,4011.0,2.49314385]
[1758806274152,9.52296377,4011.1,4008.5,0.2026]
[1758806274153,12.73517077,4011.1,4008.5,0.2026]
[1758806274350,6.986,4011.0,4008.9,2.49444984]
[1758806274549,7.668071,4010.9,4009.0,2.49438762]
[1758806274756,3.472368,4010.8,4010.7,2.49333034]
[1758806274982,3.054711,4010.8,4010.7,2.49333034]
[1758806275149,9.7169,4010.8,4010.7,2.49333034]
[1758806275474,11.754811,4010.8,4010.7,2.49333034]
[1758806275681,0.001,4010.9,4010.8,2.49326817]
[1758806275863,9.4721,4010.9,4010.8,2.49326817]
[1758806276066,2.082,4010.9,4010.8,2.49326817]
[1758806276243,9.032,4010.9,4010.8,2.49326817]
[1758806276664,0.001,4011.4,4011.2,0.792]
[1758806276868,0.001,4011.4,4011.3,3.30988696]
[1758806277072,0.4301,4011.4,4011.3,2.49295739]
[1758806277642,2.081,4011.4,4011.3,2.49295739]
[1758806277870,0.001,4011.8,4011.3,3.28495739]
[1758806278079,0.001,4011.8,4011.7,2.49270882]
[1758806278264,0.02,4012.9,4012.8,2.49202551]
[1758806278463,9.026,4012.9,4012.8,2.49202551]
[1758806278769,2.1,4012.9,4012.8,2.49202551]
[1758806278973,3.0,4012.8,4010.4,2.49347215]
[1758806279142,6.014068,4012.8,4010.9,0.792]
[1758806279344,3.0,4012.6,4012.5,2.49221183]
[1758806279578,4.596,4012.5,4011.0,0.792]
[1758806279775,4.596,4012.5,4010.8,2.49326817]
[1758806279979,4.596,4012.5,4011.5,2.49281853]
[1758806280179,3.4291,4012.4,4010.3,0.792]
[1758806280482,2.08,4012.5,4012.3,2.49232607]
[1758806280651,2.08,4012.5,4012.4,2.49227395]
[1758806280858,0.02,4012.9,4012.8,2.49202551]
[1758806281057,5.348,4012.9,4012.8,2.51694576]
[1758806281242,0.02,4012.9,4011.5,0.2028]
[1758806281448,3.93,4012.8,4011.4,0.792]
[1758806281642,0.02,4012.9,4012.7,2.49208762]
[1758806281893,0.02,4012.9,4011.4,0.792]
[1758806281894,0.02,4012.9,4012.8,2.49202551]
[1758806282059,0.00311902,4013.8,4013.1,0.792]
[1758806282243,0.00311902,4013.8,4013.7,2.49146672]
[1758806282443,0.00311902,4013.8,4013.7,3.30838138]
[1758806282642,0.02,4013.9,4013.8,3.28340465]
[1758806282900,1e-08,4013.9,4013.8,3.48620465]
[1758806283303,1e-08,4013.9,4013.8,3.28340465]
[1758806283868,1e-08,4013.9,4013.8,2.49140465]
[1758806284221,1e-08,4013.9,4012.5,0.2028]
[1758806284370,1e-08,4013.9,4010.2,1.0]
[1758806284371,2.07900001,4013.9,4009.3,9.64750289]
[1758806284573,0.433,4013.8,4011.4,2.49289524]
[1758806284813,9.653007,4013.7,4011.4,2.49289524]
[1758806284996,5.790757,4013.6,4011.3,0.2028]
[1758806285313,3.0,4013.4,4009.9,0.2028]
[1758806285526,3.0,4013.2,4009.9,0.2028]
[1758806285805,2.7511,4013.1,4010.0,0.02493765]
[1758806285971,2.078,4013.1,4012.8,2.49201448]
[1758806286172,2.078,4013.1,4013.0,2.49190132]
[1758806286414,2.078,4013.1,4011.9,0.792]
[1758806286648,0.43300001,4013.9,4012.0,0.02492522]
[1758806286921,2.078,4013.7,4012.8,0.792]
[1758806287206,2.078,4013.7,4011.6,2.49277096]
[1758806287406,2.078,4013.7,4010.4,2.49347087]
[1758806287407,13.422448,4013.6,4010.4,0.2028]
[1758806287703,13.236012,4013.5,4012.6,2.49214827]
[1758806287912,0.433,4013.6,4012.7,0.02492087]
[1758806288069,0.433,4013.6,4012.0,2.49247239]
[1758806288070,2.078,4013.5,4012.0,0.792]
[1758806288404,2.078,4013.5,4013.4,2.49165296]
[1758806288770,1e-08,4013.9,4013.8,2.49140465]
[1758806288970,2.75110001,4013.9,4011.4,0.2028]
[1758806289215,0.124,4013.6,4013.5,2.49157507]
[1758806289421,6.590845,4013.5,4011.0,2.49314088]
[1758806289580,0.6731,4013.6,4011.0,0.2028]
[1758806289916,0.6731,4013.6,4013.2,2.49174852]
[1758806290135,10.503906,4013.5,4012.7,2.49203515]
[1758806290335,4.435686,4013.4,4011.8,2.49264669]
[1758806290491,4.435686,4013.4,4011.9,0.792]
[1758806290807,0.6731,4013.3,4012.2,2.49238454]
[1758806291113,13.865739,4013.2,4009.6,0.2028]
[1758806291316,0.7061,4013.2,4012.4,2.49226968]
[1758806291483,2.078,4013.1,4012.3,2.49233521]
[1758806291682,11.156014,4013.0,4010.5,2.49345468]
[1758806291914,11.156014,4013.0,4010.6,0.02493392]
[1758806291915,0.4604,4012.9,4010.6,0.02493392]
[1758806292116,2.078,4012.8,4012.7,2.49203839]
[1758806292615,0.2457,4013.0,4012.8,2.49202551]
[1758806292816,7.4741,4012.9,4012.5,2.49220057]
[1758806292990,7.4741,4012.9,4011.9,0.002]
[1758806292991,9.3064,4012.8,4012.3,2.49228384]
[1758806293193,3.0,4013.7,4012.1,2.49240114]
[1758806293194,4.11903,4012.7,4012.1,2.49240114]
[1758806293419,8.838,4012.6,4011.9,0.002]
[1758806293618,14.81961,4012.5,4011.9,0.002]
[1758806293821,13.260373,4012.5,4011.9,0.002]
[1758806294121,2.034923,4012.5,4012.0,2.49252243]
[1758806294330,2.83923,4012.4,4012.1,2.49244797]
[1758806294531,0.7061,4012.4,4012.0,2.49251566]
[1758806294737,0.4604,4012.3,4011.9,0.002]
[1758806294958,0.7061,4012.3,4011.9,0.002]
[1758806295245,0.7061,4012.3,4011.4,0.002]
[1758806295246,9.64588,4012.2,4011.4,0.002]
[1758806295410,15.674302,4012.1,4011.4,0.002]
[1758806295727,5.686879,4012.0,4011.4,0.002]
[1758806295937,6.392979,4012.0,4011.4,0.002]
[1758806296106,3.0,4011.8,4011.4,0.002]
[1758806296302,2.4928331,4011.5,4011.4,0.002]
[1758806296506,20.03673,4011.5,4011.4,0.002]
[1758806296810,7.4101,4011.5,4011.4,0.002]
[1758806297015,6.190586,4011.5,4011.4,0.002]
[1758806297211,21.9400851,4011.5,4011.4,0.002]
[1758806297401,2.49308169,4011.1,4008.0,1.9592261]
[1758806297605,2.49359365,4010.3,4008.1,2.49494773]
[1758806297802,17.16657,4010.2,4008.2,2.49488548]
[1758806298039,6.69,4010.1,4008.3,2.51972967]
[1758806298334,2.005837,4010.0,4008.1,2.49494773]
[1758806298499,0.7061,4009.9,4007.7,0.2028]
[1758806298704,9.496677,4009.8,4008.8,2.49445964]
[1758806298904,8.755,4009.7,4009.0,2.49437628]
[1758806299223,4.119529,4009.6,4008.4,2.49470117]
[1758806299398,4.119529,4009.6,4007.6,2.495259]
[1758806299399,9.4511,4009.5,4008.3,2.49480101]
[1758806299605,0.124,4008.9,4008.4,2.49472398]
[1758806299902,0.2457,4008.8,4008.5,2.49466571]
[1758806300109,3.12293148,4010.2,4006.8,0.2028]
[1758806300110,8.738,4008.7,4008.6,2.49463653]
[1758806300336,9.4441,4008.7,4007.6,2.49520541]
[1758806300537,9.4441,4008.7,4006.2,5.078]
[1758806300538,9.332834,4008.6,4006.2,0.0061]
[1758806300723,9.786942,4008.5,4006.1,0.22880867]
[1758806300906,10.859735,4008.4,4007.9,2.49506281]
[1758806301103,6.648,4008.3,4006.6,0.2028]
[1758806301302,8.726,4008.3,4008.2,2.49488548]
[1758806301504,9.4321,4008.3,4006.7,0.792]
[1758806301719,9.4321,4008.3,4008.1,2.49491119]
[1758806301923,9.4321,4008.3,4006.7,0.792]
[1758806301924,8.712,4008.2,4006.7,0.792]
[1758806302130,0.7061,4009.0,4006.6,2.69866778]
[1758806302131,8.712,4008.1,4007.1,0.792]
[1758806302348,8.708,4008.0,4006.6,0.2028]
[1758806302646,8.708,4007.9,4006.5,0.22852628]
[1758806302847,9.1644,4007.8,4006.1,2.724694]
[1758806303012,11.998843,4007.8,4007.2,2.49544751]
[1758806303346,11.641821,4007.7,4007.1,0.0249557]
[1758806303542,8.694,4007.6,4007.4,2.49537817]
[1758806303742,0.7061,4007.5,4006.3,2.49605798]
[1758806303943,0.7061,4007.5,4005.8,0.2028]
[1758806304142,0.7061,4007.5,4007.2,2.49546746]
[1758806304313,0.7061,4007.4,4005.1,0.2089]
[1758806304513,6.033622,4007.3,4005.2,2.49675421]
[1758806304738,2.978352,4007.3,4006.0,2.49623198]
[1758806304936,6.588,4007.2,4006.9,2.49568336]
[1758806305138,0.7061,4007.1,4006.4,2.49600258]
[1758806305313,0.7061,4007.1,4004.8,2.49700359]
[1758806305514,0.7061,4007.1,4006.4,2.49595561]
[1758806305710,6.040322,4007.0,4005.1,2.49679736]
[1758806305949,8.656,4006.9,4005.2,2.49675421]
[1758806306249,0.7061,4007.1,4004.9,0.792]
[1758806306454,8.65,4007.0,4006.7,2.49577381]
[1758806306654,0.2457,4007.8,4006.8,0.02495757]
[1758806306951,8.64,4007.7,4006.0,0.792]
[1758806307123,8.64,4007.7,4007.4,2.49533913]
[1758806307319,8.63,4007.6,4007.4,2.49533913]
[1758806307521,9.0904,4007.6,4007.2,2.49550497]
[1758806307718,8.63,4007.5,4007.2,2.49549268]
[1758806308019,8.63,4007.5,4006.1,0.792]
[1758806308020,0.7061,4007.4,4006.1,0.792]
[1758806308217,0.7061,4007.4,4005.7,0.792]
[1758806308436,8.618,4007.3,4006.0,0.792]
[1758806308627,8.618,4007.3,4006.9,2.49563663]
[1758806308823,8.8637,4007.3,4007.1,2.49556814]
[1758806309023,8.618,4007.3,4007.1,2.49556814]
[1758806309264,8.618,4007.3,4005.9,0.792]
[1758806309579,8.618,4007.3,4005.7,0.792]
[1758806309781,8.618,4007.3,4006.0,2.49625561]
[1758806310074,0.2457,4007.9,4007.1,2.49552878]
[1758806310075,0.124,4007.2,4007.1,2.49552878]
[1758806310283,8.712,4007.2,4006.9,2.49564271]
[1758806310471,6.504,4007.1,4006.7,2.495805]
[1758806310664,6.504,4007.1,4006.5,0.124]
[1758806311078,2.885862,4007.0,4004.4,2.49719447]
[1758806311254,4.136043,4006.9,4004.4,2.49719447]
[1758806311454,7.14006,4006.8,4004.5,2.49719066]
[1758806311661,6.062685,4006.7,4005.8,2.49635844]
[1758806311893,0.4604,4006.7,4004.9,0.2028]
[1758806312048,6.485,4006.6,4005.8,0.002]
[1758806312552,6.485,4006.6,4006.5,2.49594409]
[1758806312757,0.7061,4007.2,4006.4,0.02496006]
[1758806313058,3.545,4007.1,4006.4,0.02496006]
[1758806313246,8.544,4007.0,4006.0,2.49619989]
[1758806313443,8.544,4007.0,4005.8,0.794]
[1758806313644,8.544,4007.0,4006.9,2.49569492]
[1758806314160,8.544,4007.0,4005.8,0.794]
[1758806314460,8.544,4007.0,4006.9,2.49569492]
[1758806315250,0.7061,4007.8,4005.9,2.49631793]
[1758806315451,36.405,4007.7,4006.0,0.792]
[1758806315681,2.08,4007.9,4007.8,2.49513448]
[1758806315855,0.4604,4008.0,4007.8,2.49513448]
[1758806315856,2.08,4008.0,4007.9,2.49507223]
[1758806316056,0.4604,4008.5,4008.4,2.494761]
[1758806316262,4.7644,4008.5,4008.4,2.494761]
[1758806316457,0.4604,4009.1,4008.9,2.49443201]
[1758806316805,0.001,4011.9,4007.8,0.2028]
[1758806316806,4.377,4009.5,4007.8,0.2028]
[1758806317095,2.49265981,4011.8,4009.3,2.49420098]
[1758806317096,0.7061,4009.4,4009.3,2.49420098]
[1758806317299,7.667,4009.4,4009.3,2.49420098]
[1758806317483,8.9544,4009.4,4009.3,2.49420098]
[1758806317662,0.4604,4009.4,4009.3,2.49420098]
[1758806317864,0.2457,4009.7,4009.6,2.49401436]
[1758806318067,0.7061,4009.7,4009.6,2.49401436]
[1758806318265,2.08,4009.7,4009.6,2.49401436]
[1758806318522,0.001,4011.0,4010.9,2.49320601]
[1758806318976,0.001,4011.0,4009.7,0.792]
[1758806319167,0.001,4011.0,4010.9,2.49320601]
[1758806319703,2.7861,4011.0,4009.4,0.792]
[1758806319864,2.7861,4011.0,4009.6,0.792]
[1758806320061,4.379431,4010.9,4009.5,2.4940724]
[1758806320261,2.7861,4011.0,4010.7,2.49330201]
[1758806320262,6.376,4010.8,4010.7,2.49330201]
[1758806320556,6.376,4010.8,4009.6,2.49401436]
[1758806320557,9.1611,4010.8,4009.6,2.49401436]
[1758806320690,0.2457,4010.8,4010.7,2.49333034]
[1758806320996,8.447,4010.8,4010.7,2.49333034]
[1758806321363,0.125,4011.0,4010.9,2.49320601]
[1758806321571,0.001,4011.0,4010.9,2.49320601]
[1758806321766,0.001,4011.0,4010.9,2.51813807]
[1758806322298,0.001,4011.0,4010.9,2.62330601]
[1758806322700,0.001,4011.0,4010.9,2.61720601]
[1758806323797,0.001,4011.0,4010.9,2.49320601]
[1758806323976,0.001,4011.0,4010.9,3.51903807]
[1758806324518,0.001,4011.0,4010.9,3.49410601]
[1758806324819,0.001,4011.5,4011.4,3.28489524]
[1758806324984,0.001,4011.5,4011.4,3.30982419]
[1758806325185,0.001,4011.5,4011.4,3.51772419]
[1758806325384,0.001,4011.5,4011.4,3.29099524]
[1758806325700,0.001,4011.5,4011.4,3.49279524]
[1758806326010,0.001,4011.5,4011.4,3.51772419]
[1758806326200,0.001,4011.5,4011.4,3.49279524]
[1758806326701,0.001,4011.5,4011.4,5.57079524]
[1758806327171,0.001,4011.5,4011.4,3.28489524]
[1758806327371,0.001,4011.5,4011.4,3.30982419]
[1758806327566,0.001,4011.5,4011.4,3.31592419]
[1758806327903,0.001,4011.5,4011.4,3.49279524]
[1758806328103,0.001,4011.5,4011.4,3.51772419]
[1758806328320,0.001,4011.5,4011.4,11.84779524]
[1758806328485,0.001,4011.5,4011.4,3.49279524]
[1758806328700,0.001,4011.5,4011.4,3.28489524]
[1758806329217,0.001,4011.5,4011.4,2.49289524]
[1758806329421,0.7076,4011.5,4009.7,0.0061]
[1758806329714,0.7076,4011.5,4009.8,0.02493889]
[1758806329870,2.078,4011.4,4010.2,2.49361735]
[1758806330068,0.7066,4011.3,4010.4,2.49351294]
[1758806330375,0.7066,4011.2,4008.7,2.49453692]
[1758806330682,12.225155,4011.1,4010.1,2.49370219]
[1758806331007,0.7066,4011.0,4009.3,2.49414373]
[1758806331205,0.7066,4010.9,4009.6,2.49395509]
[1758806331405,12.73539,4011.0,4009.7,2.49391707]
[1758806331406,13.683043,4010.8,4009.7,2.49391707]
[1758806331571,5.078,4011.4,4007.7,3.0]
[1758806331572,9.963544,4010.7,4007.7,3.0]
[1758806331773,10.387608,4010.6,4007.6,2.69701736]
[1758806332069,10.387608,4010.6,4006.2,0.12345339]
[1758806332070,0.7066,4010.6,4008.0,2.2798]
[1758806332405,0.7066,4010.6,4010.4,2.49351685]
[1758806332617,2.078,4010.5,4010.4,2.49351685]
[1758806332771,0.7066,4010.5,4009.1,2.4943254]
[1758806333123,0.7058,4010.5,4010.3,2.49351757]
[1758806333277,0.4703,4010.4,4008.3,0.0069]
[1758806333615,0.4703,4010.4,4008.2,2.49488548]
[1758806333918,0.124,4009.8,4009.2,0.124]
[1758806334086,0.124,4009.6,4007.7,0.0069]
[1758806334279,13.77038,4009.5,4008.6,2.49460889]
[1758806334474,0.124,4009.0,4008.3,0.124]
[1758806334677,6.185,4009.6,4008.1,2.49494252]
[1758806334678,0.124,4008.5,4008.1,2.49494252]
[1758806334877,8.67906845,4009.6,4008.0,2.49496284]
[1758806334878,2.5483,4008.4,4008.0,2.49496284]
[1758806335107,2.9086,4008.3,4008.2,2.49488473]
[1758806335308,2.9086,4008.3,4008.2,2.49488548]
[1758806335700,0.124,4008.3,4008.2,2.49488548]
[1758806335988,2.202,4008.3,4008.2,2.49488548]
[1758806336390,2.9086,4008.3,4008.2,2.49488548]
[1758806336987,2.9086,4008.3,4006.8,2.49575721]
[1758806336988,8.842947,4008.3,4006.8,2.49575721]
[1758806337203,0.7066,4008.3,4008.2,2.49488548]
[1758806337409,2.7846,4008.3,4008.2,2.49488548]
[1758806337621,0.7066,4008.8,4008.7,2.4945743]
[1758806337991,8.9246,4008.8,4008.7,2.4945743]
[1758806339005,0.7066,4008.7,4008.6,2.49458183]
[1758806339214,2.7846,4008.7,4008.6,2.49458183]
[1758806339394,0.4703,4008.7,4008.6,2.49458183]
[1758806339824,2.078,4008.8,4008.7,2.4945743]
[1758806340128,2.079,4009.0,4007.3,0.792]
[1758806340432,2.079,4009.0,4008.3,2.4948228]
[1758806340433,4.164372,4008.9,4008.3,2.4948228]
[1758806340619,4.164372,4008.9,4006.6,2.0879]
[1758806340620,6.830984,4008.3,4006.6,0.002]
[1758806340817,0.7066,4008.8,4006.6,0.002]
[1758806340818,16.569955,4008.2,4006.6,0.002]
[1758806341021,8.07691,4008.1,4007.4,2.49532627]
[1758806341228,8.07691,4008.1,4006.6,0.002]
[1758806341229,0.7066,4008.0,4006.6,0.002]
[1758806341431,0.7066,4008.0,4006.6,2.49784274]
[1758806341738,11.666683,4007.9,4007.4,2.4953404]
[1758806342034,7.88495,4007.8,4006.8,2.49571008]
[1758806342207,3.0,4008.3,4006.6,0.002]
[1758806342208,12.437682,4007.7,4006.6,0.002]
[1758806342532,3.384539,4007.6,4006.6,0.002]
[1758806342732,3.384539,4007.6,4006.8,2.49574675]
[1758806343032,8.158,4007.5,4006.7,2.4958195]
[1758806343233,0.6988,4007.4,4006.7,2.4958195]
[1758806343439,0.6988,4007.3,4006.7,2.4958195]
[1758806343736,8.158,4007.5,4006.6,0.002]
[1758806343737,11.219173,4006.7,4006.6,0.002]
[1758806344032,14.198676,4006.7,4006.2,0.002]
[1758806344243,0.6988,4006.6,4006.2,0.002]
[1758806344396,0.6988,4006.6,4006.2,2.49807682]
[1758806344596,8.3872,4006.5,4006.2,0.002]
[1758806344802,2.079,4006.4,4006.2,0.002]
[1758806344997,0.6988,4006.4,4006.3,2.49606869]
[1758806345199,8.13,4006.4,4006.2,0.0269613]
[1758806345501,0.6988,4007.1,4006.2,0.002]
[1758806345827,8.128,4007.0,4006.9,2.49569492]
[1758806346035,0.39145996,4007.3,4007.0,2.49563264]
[1758806346322,2.079,4007.2,4007.1,2.52052364]
[1758806346535,0.39145996,4007.3,4007.2,2.49550808]
[1758806346736,0.39145996,4007.3,4007.2,2.52046316]
[1758806347051,0.6988,4009.8,4008.0,0.792]
[1758806347215,0.124,4009.5,4007.2,0.2107]
[1758806347414,0.124,4008.8,4008.7,2.4945743]
[1758806347722,0.6988,4009.7,4009.0,2.49438762]
[1758806347723,2.079,4009.1,4009.0,2.49438762]
[1758806348127,2.079,4009.9,4009.0,2.49438762]
[1758806348327,0.124,4009.7,4009.6,2.49396447]
[1758806348627,0.8228,4009.7,4009.6,2.49396447]
[1758806348823,8.246,4009.7,4009.6,2.49396447]
[1758806349218,0.124,4009.7,4009.6,2.49396447]
[1758806349838,0.39118527,4010.5,4010.1,2.49370339]
[1758806350040,2.079,4010.4,4010.3,2.49357903]
[1758806350238,5.804,4010.4,4010.3,2.49357903]
[1758806350534,0.4536,4010.8,4010.5,2.49342322]
[1758806350737,0.001,4011.0,4010.3,2.49357655]
[1758806350738,0.6988,4010.7,4010.3,2.49357655]
[1758806350940,0.6988,4010.7,4010.6,2.4933925]
[1758806351127,0.6988,4010.7,4010.5,2.49340847]
[1758806351128,0.124,4010.5,4009.2,0.7989]
[1758806351439,0.124,4010.5,4010.4,2.49351685]
[1758806351741,0.001,4011.0,4010.9,2.49320601]
[1758806352314,0.001,4011.0,4010.9,2.50010601]
[1758806352517,0.001,4011.0,4010.9,2.70390601]
[1758806352721,0.001,4011.0,4010.9,2.72883807]
[1758806353117,0.001,4011.0,4010.9,2.49320601]
[1758806353539,0.001,4011.0,4010.1,2.49370339]
[1758806353739,0.001,4011.0,4009.6,0.2038]
[1758806353740,0.4434,4011.0,4009.6,2.49399175]
[1758806353941,6.2316,4010.9,4009.0,0.0069]
[1758806354107,8.3106,4010.9,4009.1,0.02494325]
[1758806354308,8.3106,4010.9,4010.4,2.49346239]
[1758806354503,0.691,4010.8,4009.9,2.493767]
[1758806354710,0.691,4010.8,4010.0,2.518697]
[1758806354918,0.691,4010.8,4010.0,0.02493765]
[1758806355239,0.691,4010.8,4009.3,2.49414036]